{"text_format":"3","workbook":"xlsx","n_sheets":2,"sheets":["Счет","Данные компании"],"not_rendered":{"images":1,"defined_names":27},"read":"whole","date_system":"1900"}

{"sheet":"Счет","index":0,"n_rows":35,"n_cols":7,"rows_kept":35,"merged":[[1,3,2,4],[3,3,3,4],[4,3,4,4],[5,3,5,4],[23,1,23,3],[24,1,24,3],[25,1,25,3],[26,1,26,3]]}
[null,"СЧЕТ","0005"]
[null,{"$f":"TODAY()","v":"2022-04-10"},null,{"$f":"ИтогПоСчету","v":79.65},null," ","Данные компании"]
[null,"СРОК ОПЛАТЫ:",{"$f":"TODAY()+15","v":"2022-04-25"},null,null," "]
[null,"МАРТА АРТЕМЬЕВА",null,"ADVENTURE WORKS"]
[null,"Fabrikam, Inc.",null,"Ул. Абрикосовая, 234"]
[null,"ул. Главная, д. 123",null,"Нерехта, Костромская обл. 234567"]
[null,"Бердск, Новосибирская обл. 123456"]
[null,"КОЛИЧЕСТВО","НАИМЕНОВАНИЕ","ЦЕНА ЗА ЕДИНИЦУ","ВСЕГО"]
[null,2,"Деталь",14.95,{"$f":"IFERROR(ДанныеСчета[[#This Row],[ЦЕНА ЗА ЕДИНИЦУ]]*ДанныеСчета[[#This Row],[КОЛИЧЕСТВО]],\"\")","v":{"v":29.9,"d":"29.90"}}]
[null,5,"Шайба",9.95,{"$f":"IFERROR(ДанныеСчета[[#This Row],[ЦЕНА ЗА ЕДИНИЦУ]]*ДанныеСчета[[#This Row],[КОЛИЧЕСТВО]],\"\")","v":49.75}]
[{"$nulls":4},{"$f":"IFERROR(ДанныеСчета[[#This Row],[ЦЕНА ЗА ЕДИНИЦУ]]*ДанныеСчета[[#This Row],[КОЛИЧЕСТВО]],\"\")","v":0}]
[{"$nulls":4},{"$f":"IFERROR(ДанныеСчета[[#This Row],[ЦЕНА ЗА ЕДИНИЦУ]]*ДанныеСчета[[#This Row],[КОЛИЧЕСТВО]],\"\")","v":0}]
[{"$nulls":4},{"$f":"IFERROR(ДанныеСчета[[#This Row],[ЦЕНА ЗА ЕДИНИЦУ]]*ДанныеСчета[[#This Row],[КОЛИЧЕСТВО]],\"\")","v":0}]
[{"$nulls":4},{"$f":"IFERROR(ДанныеСчета[[#This Row],[ЦЕНА ЗА ЕДИНИЦУ]]*ДанныеСчета[[#This Row],[КОЛИЧЕСТВО]],\"\")","v":0}]
[{"$nulls":4},{"$f":"IFERROR(ДанныеСчета[[#This Row],[ЦЕНА ЗА ЕДИНИЦУ]]*ДанныеСчета[[#This Row],[КОЛИЧЕСТВО]],\"\")","v":0}]
[{"$nulls":4},{"$f":"IFERROR(ДанныеСчета[[#This Row],[ЦЕНА ЗА ЕДИНИЦУ]]*ДанныеСчета[[#This Row],[КОЛИЧЕСТВО]],\"\")","v":0}]
[{"$nulls":4},{"$f":"IFERROR(ДанныеСчета[[#This Row],[ЦЕНА ЗА ЕДИНИЦУ]]*ДанныеСчета[[#This Row],[КОЛИЧЕСТВО]],\"\")","v":0}]
[{"$nulls":4},{"$f":"IFERROR(ДанныеСчета[[#This Row],[ЦЕНА ЗА ЕДИНИЦУ]]*ДанныеСчета[[#This Row],[КОЛИЧЕСТВО]],\"\")","v":0}]
[{"$nulls":4},{"$f":"IFERROR(ДанныеСчета[[#This Row],[ЦЕНА ЗА ЕДИНИЦУ]]*ДанныеСчета[[#This Row],[КОЛИЧЕСТВО]],\"\")","v":0}]
[{"$nulls":4},{"$f":"IFERROR(ДанныеСчета[[#This Row],[ЦЕНА ЗА ЕДИНИЦУ]]*ДанныеСчета[[#This Row],[КОЛИЧЕСТВО]],\"\")","v":0}]
[{"$nulls":4},{"$f":"IFERROR(ДанныеСчета[[#This Row],[ЦЕНА ЗА ЕДИНИЦУ]]*ДанныеСчета[[#This Row],[КОЛИЧЕСТВО]],\"\")","v":0}]
[{"$nulls":4},{"$f":"IFERROR(ДанныеСчета[[#This Row],[ЦЕНА ЗА ЕДИНИЦУ]]*ДанныеСчета[[#This Row],[КОЛИЧЕСТВО]],\"\")","v":0}]
[{"$nulls":4},{"$f":"IFERROR(ДанныеСчета[[#This Row],[ЦЕНА ЗА ЕДИНИЦУ]]*ДанныеСчета[[#This Row],[КОЛИЧЕСТВО]],\"\")","v":0}]
[null,"Скидка"]
[null,"Сумма нетто",null,null,{"$f":"SUM(ДанныеСчета[ВСЕГО])-E24","v":{"v":79.65,"d":"79.65 ₽"}}]
[null,"Налог"]
[null,{"$f":"REPT(ДанныеКомпании_КодВалюты,LEN(ДанныеКомпании_КодВалюты)>0) & \" Итог\"","v":"RUB Итог"},null,null,{"$f":"IFERROR(E25+E26, \"\")","v":{"v":79.65,"d":"79.65 ₽"}}]
[null,"РЕКВИЗИТЫ ПЛАТЕЖА",null,null,"ДРУГИЕ СВЕДЕНИЯ"]
[null,"Название получателя:",{"$f":" ДанныеКомпании_НазваниеПолучателя","v":"Adventure Works"},null,{"$f":"IFERROR(ДанныеКомпании_Название,\"\")","v":"Виктор Игнатьев"}]
[null,"Название банка:",{"$f":"ДанныеКомпании_НазваниеБанка","v":"Городской банк"},null,{"$f":"IFERROR(\"Телефон: \" & ДанныеКомпании_Телефон,\"\")","v":"Телефон: 425-555-0150"}]
[null,"Адрес банка:",{"$f":"ДанныеКомпании_АдресБанка","v":"Ул. Вишневая, 345, Нерехта, Костромская обл. 234567"},null,{"$f":"IFERROR(\"Факс: \" & ДанныеКомпании_Факс,\"\")","v":"Факс: 425-555-0151"}]
[null,"Номер счета:",{"$f":"ДанныеКомпании_БанковскийСчет","v":1234567},null,{"$f":"IFERROR(ДанныеКомпании_URL,\"\")","v":"Adventure-Works.com"}]
[null,"Код банка (код SWIFT):",{"$f":"ДанныеКомпании_КодБанка","v":9876543210},null,{"$f":"IFERROR(ДанныеКомпании_ЭлектроннаяПочта,\"\")","v":"Accounting@Adventure-Works.com"}]
[null,"Ссылка на платеж:",{"$f":"ОтображениеНомераСчета","v":"0005"},null,{"$f":"IFERROR(IF(LEN(Client_PO),\"Contract/PO: \" & Client_PO,\"\"),\"\")","v":""}]
[null,{"$f":"UPPER(\"Оплата производится банковским переводом или чеком на \" & ДанныеКомпании_ПолучательПоЧеку & \".\")","v":"ОПЛАТА ПРОИЗВОДИТСЯ БАНКОВСКИМ ПЕРЕВОДОМ ИЛИ ЧЕКОМ НА ADVENTURE WORKS."}]

{"sheet":"Данные компании","index":1,"n_rows":20,"n_cols":5,"rows_kept":20}
[null,"ДАННЫЕ КОМПАНИИ"]
[null,"СВЕДЕНИЯ О КОМПАНИИ, ВЫСТАВЛЯЮЩЕЙ СЧЕТ","ЗНАЧЕНИЕ",null,"Счет"]
[null,"Название","Виктор Игнатьев"]
[null,"Название компании","ADVENTURE WORKS"]
[null,"Строка адреса 1","Ул. Абрикосовая, 234"]
[null,"Строка адреса 2","Нерехта, Костромская обл. 234567"]
[null,"Строка адреса 3"]
[null,"Строка адреса 4"]
[null,"Строка адреса 5"]
[null,"Телефон","425-555-0150"]
[null,"Факс","425-555-0151"]
[null,"Веб-сайт","Adventure-Works.com"]
[null,"Электронная почта","Accounting@Adventure-Works.com"]
[null,"Код валюты","RUB"]
[null,"Название получателя банковского перевода","Adventure Works"]
[null,"Название банка","Городской банк"]
[null,"Адрес банка","Ул. Вишневая, 345, Нерехта, Костромская обл. 234567"]
[null,"Номер счета",1234567]
[null,"Код банка (код SWIFT)",9876543210]
[null,"Все чеки должны быть выписаны на компанию","Adventure Works"]